[Event "Titled Tuesday Blitz August 3 2021"]
[White "Ter-Sahakyan, Samvel"]
[Black "freshfoodcompany"]
[WhiteFideId "13302531"]
[WhiteElo "2551"]
[BlackElo "2434"]
[Result "1-0"]
[Round "01"]
[TimeControl "180+1"]
[Date "2021.08.03"]
[WhiteClock "0:01:19"]
[BlackClock "0:00:56"]

1. Nf3 {[%clk 0:02:58]}  d5 {[%clk 0:02:59]} 2. e3 {[%clk 0:02:56]}  Nf6 {[%clk 0:02:59]} 3. c4 {[%clk 0:02:56]}  e6 {[%clk 0:02:57]} 4. Nc3 {[%clk 0:02:55]}  c6 {[%clk 0:02:57]} 5. b3 {[%clk 0:02:55]}  Nbd7 {[%clk 0:02:57]} 6. Bb2 {[%clk 0:02:55]}  Bd6 {[%clk 0:02:51]} 7. Qc2 {[%clk 0:02:55]}  O-O {[%clk 0:02:51]} 8. d4 {[%clk 0:02:48]}  e5 {[%clk 0:02:48]} 9. O-O-O {[%clk 0:02:40]}  Qe7 {[%clk 0:02:45]} 10. Kb1 {[%clk 0:02:39]}  a6 {[%clk 0:02:33]} 11. h3 {[%clk 0:02:32]}  b5 {[%clk 0:02:30]} 12. c5 {[%clk 0:02:31]}  Bc7 {[%clk 0:02:29]} 13. g4 {[%clk 0:02:26]}  e4 {[%clk 0:02:27]} 14. Nd2 {[%clk 0:02:14]}  a5 {[%clk 0:02:25]} 15. Be2 {[%clk 0:02:09]}  Ba6 {[%clk 0:02:11]} 16. Nf1 {[%clk 0:01:53]}  b4 {[%clk 0:02:08]} 17. Na4 {[%clk 0:01:53]}  Bb5 {[%clk 0:02:05]} 18. Ng3 {[%clk 0:01:46]}  Bxg3 {[%clk 0:02:02]} 19. fxg3 {[%clk 0:01:45]}  Rfb8 {[%clk 0:01:59]} 20. g5 {[%clk 0:01:42]}  Ne8 {[%clk 0:01:58]} 21. h4 {[%clk 0:01:42]}  Nc7 {[%clk 0:01:56]} 22. Rdf1 {[%clk 0:01:36]}  Ne6 {[%clk 0:01:55]} 23. Rf2 {[%clk 0:01:31]}  f6 {[%clk 0:01:36]} 24. gxf6 {[%clk 0:01:29]}  Nxf6 {[%clk 0:01:37]} 25. Nb6 {[%clk 0:01:27]}  Ra7 {[%clk 0:01:30]} 26. Bxb5 {[%clk 0:01:27]}  cxb5 {[%clk 0:01:30]} 27. Rhf1 {[%clk 0:01:25]}  Rc7 {[%clk 0:01:29]} 28. Rxf6 {[%clk 0:01:22]}  Rxb6 {[%clk 0:01:21]} 29. Rf7 {[%clk 0:01:22]}  Qxf7 {[%clk 0:00:57]} 30. Rxf7 {[%clk 0:01:21]}  Kxf7 {[%clk 0:00:57]} 31. Qf2+ {[%clk 0:01:20]}  Ke7 {[%clk 0:00:56]} 32. cxb6 {[%clk 0:01:20]}  Rb7 {[%clk 0:00:56]} 33. Qf5 {[%clk 0:01:19]}  Rxb6 {[%clk 0:00:56]} 34. Qxd5 {[%clk 0:01:19]}  Rd6 {[%clk 0:00:56]} 35. Qxe4 {[%clk 0:01:19]} 1-0


[Site "https://www.chess.com"]

[Event "Titled Tuesday Blitz August 3 2021"]
[White "Turzo, Attila"]
[Black "Goltsev, Dmitry"]
[WhiteFideId "704954"]
[BlackFideId "24176710"]
[WhiteElo "2432"]
[BlackElo "2366"]
[Result "0-1"]
[Round "01"]
[TimeControl "180+1"]
[Date "2021.08.03"]
[WhiteClock "0:00:21"]
[BlackClock "0:00:38"]

1. d4 {[%clk 0:03:00]}  h6 {[%clk 0:02:57]} 2. c4 {[%clk 0:02:59]}  e6 {[%clk 0:02:56]} 3. Nc3 {[%clk 0:02:59]}  d5 {[%clk 0:02:57]} 4. Nf3 {[%clk 0:02:58]}  dxc4 {[%clk 0:02:56]} 5. e4 {[%clk 0:02:56]}  Nf6 {[%clk 0:02:54]} 6. Bxc4 {[%clk 0:02:55]}  Nbd7 {[%clk 0:02:52]} 7. O-O {[%clk 0:02:54]}  Nb6 {[%clk 0:02:51]} 8. Bb3 {[%clk 0:02:50]}  Be7 {[%clk 0:02:50]} 9. Qe2 {[%clk 0:02:47]}  O-O {[%clk 0:02:49]} 10. Rd1 {[%clk 0:02:48]}  c6 {[%clk 0:02:47]} 11. Bc2 {[%clk 0:02:38]}  Qc7 {[%clk 0:02:39]} 12. e5 {[%clk 0:02:33]}  Nfd5 {[%clk 0:02:39]} 13. Qe4 {[%clk 0:02:32]}  f5 {[%clk 0:02:36]} 14. exf6 {[%clk 0:02:30]}  Bxf6 {[%clk 0:02:23]} 15. Qh7+ {[%clk 0:02:24]}  Kf7 {[%clk 0:02:21]} 16. Bxh6 {[%clk 0:02:11]}  Ke8 {[%clk 0:02:19]} 17. Bg6+ {[%clk 0:01:48]}  Kd8 {[%clk 0:02:14]} 18. Be3 {[%clk 0:01:41]}  Nxe3 {[%clk 0:01:56]} 19. fxe3 {[%clk 0:01:39]}  Nc4 {[%clk 0:01:56]} 20. e4 {[%clk 0:01:33]}  Qf4 {[%clk 0:01:51]} 21. e5 {[%clk 0:01:25]}  Be7 {[%clk 0:01:50]} 22. Qxg7 {[%clk 0:01:08]}  Ne3 {[%clk 0:01:48]} 23. Rd2 {[%clk 0:01:02]}  Nxg2 {[%clk 0:01:43]} 24. Rxg2 {[%clk 0:01:01]}  Qxf3 {[%clk 0:01:42]} 25. Be4 {[%clk 0:00:53]}  Qe3+ {[%clk 0:01:33]} 26. Kh1 {[%clk 0:00:51]}  Bd7 {[%clk 0:01:31]} 27. Rd1 {[%clk 0:00:38]}  Re8 {[%clk 0:01:24]} 28. Bg6 {[%clk 0:00:35]}  Rf8 {[%clk 0:01:11]} 29. Ne4 {[%clk 0:00:28]}  Qf3 {[%clk 0:00:42]} 30. Kg1 {[%clk 0:00:21]}  Qxd1# {[%clk 0:00:38]} 0-1


[Site "https://www.chess.com"]

[Event "Titled Tuesday Blitz August 3 2021"]
[White "Vivas Zamora, Fabian Ernesto"]
[Black "Tristan, Leonardo"]
[WhiteFideId "3902480"]
[BlackFideId "113816"]
[WhiteElo "1966"]
[BlackElo "2404"]
[Result "0-1"]
[Round "01"]
[TimeControl "180+1"]
[Date "2021.08.03"]
[WhiteClock "0:01:00"]
[BlackClock "0:00:49"]

1. c3 {[%clk 0:02:48]}  d5 {[%clk 0:01:34]} 2. d4 {[%clk 0:02:46]}  Nf6 {[%clk 0:01:33]} 3. Bf4 {[%clk 0:02:46]}  e6 {[%clk 0:01:34]} 4. Nf3 {[%clk 0:02:45]}  Bd6 {[%clk 0:01:33]} 5. e3 {[%clk 0:02:44]}  O-O {[%clk 0:01:33]} 6. Bg3 {[%clk 0:02:42]}  c5 {[%clk 0:01:33]} 7. Nbd2 {[%clk 0:02:42]}  Qc7 {[%clk 0:01:33]} 8. Bd3 {[%clk 0:02:40]}  Nbd7 {[%clk 0:01:34]} 9. O-O {[%clk 0:02:27]}  e5 {[%clk 0:01:19]} 10. dxe5 {[%clk 0:02:27]}  Nxe5 {[%clk 0:01:20]} 11. Nxe5 {[%clk 0:02:27]}  Bxe5 {[%clk 0:01:20]} 12. Bxe5 {[%clk 0:02:26]}  Qxe5 {[%clk 0:01:21]} 13. Re1 {[%clk 0:02:02]}  Re8 {[%clk 0:01:20]} 14. e4 {[%clk 0:01:54]}  Bg4 {[%clk 0:01:09]} 15. Qc2 {[%clk 0:01:42]}  Rad8 {[%clk 0:01:06]} 16. h3 {[%clk 0:01:41]}  Bc8 {[%clk 0:00:57]} 17. exd5 {[%clk 0:01:35]}  Qxe1+ {[%clk 0:00:56]} 18. Rxe1 {[%clk 0:01:33]}  Rxe1+ {[%clk 0:00:57]} 19. Kh2 {[%clk 0:01:33]}  Rxd5 {[%clk 0:00:54]} 20. Nf3 {[%clk 0:01:27]}  Re7 {[%clk 0:00:52]} 21. Bc4 {[%clk 0:01:24]}  Rd8 {[%clk 0:00:52]} 22. a4 {[%clk 0:01:17]}  b6 {[%clk 0:00:52]} 23. a5 {[%clk 0:01:17]}  Bb7 {[%clk 0:00:50]} 24. Ng5 {[%clk 0:01:09]}  h6 {[%clk 0:00:49]} 25. Nxf7 {[%clk 0:00:59]}  Rxf7 {[%clk 0:00:50]} 26. Bd5 {[%clk 0:01:00]}  Bxd5 {[%clk 0:00:49]} 0-1


[Site "https://www.chess.com"]

[Event "Titled Tuesday Blitz August 3 2021"]
[White "Weetik, Vjacheslav"]
[Black "Hamley, Ryan"]
[WhiteFideId "4153472"]
[BlackFideId "30959497"]
[WhiteElo "2469"]
[BlackElo "2371"]
[Result "0-1"]
[Round "01"]
[TimeControl "180+1"]
[Date "2021.08.03"]
[WhiteClock "0:00:13"]
[BlackClock "0:00:27"]

1. d4 {[%clk 0:03:00]}  Nf6 {[%clk 0:02:58]} 2. c4 {[%clk 0:02:59]}  e6 {[%clk 0:02:58]} 3. Nc3 {[%clk 0:02:57]}  d5 {[%clk 0:02:59]} 4. Nf3 {[%clk 0:02:54]}  Bb4 {[%clk 0:02:54]} 5. e3 {[%clk 0:02:49]}  O-O {[%clk 0:02:54]} 6. Bd3 {[%clk 0:02:46]}  c5 {[%clk 0:02:45]} 7. O-O {[%clk 0:02:44]}  cxd4 {[%clk 0:02:36]} 8. exd4 {[%clk 0:02:44]}  dxc4 {[%clk 0:02:36]} 9. Bxc4 {[%clk 0:02:44]}  b6 {[%clk 0:02:37]} 10. Qb3 {[%clk 0:02:34]}  Bxc3 {[%clk 0:02:09]} 11. bxc3 {[%clk 0:02:31]}  Bb7 {[%clk 0:02:10]} 12. Ne5 {[%clk 0:02:28]}  Nbd7 {[%clk 0:02:09]} 13. Bg5 {[%clk 0:02:19]}  h6 {[%clk 0:02:04]} 14. Bh4 {[%clk 0:02:10]}  Nxe5 {[%clk 0:01:58]} 15. dxe5 {[%clk 0:02:09]}  g5 {[%clk 0:01:58]} 16. Bg3 {[%clk 0:01:44]}  Ne4 {[%clk 0:01:36]} 17. Rad1 {[%clk 0:01:42]}  Qe7 {[%clk 0:01:34]} 18. Rd4 {[%clk 0:01:25]}  Rfd8 {[%clk 0:01:20]} 19. Qb2 {[%clk 0:00:43]}  Qc7 {[%clk 0:00:55]} 20. Bb3 {[%clk 0:00:16]}  Nxc3 {[%clk 0:00:39]} 21. Rxd8+ {[%clk 0:00:16]}  Rxd8 {[%clk 0:00:39]} 22. h4 {[%clk 0:00:15]}  Ne4 {[%clk 0:00:32]} 23. Bh2 {[%clk 0:00:13]}  Qe7 {[%clk 0:00:28]} 24. hxg5 {[%clk 0:00:13]}  Qxg5 {[%clk 0:00:28]} 25. f3 {[%clk 0:00:13]}  Rd2 {[%clk 0:00:27]} 0-1


[Site "https://www.chess.com"]

[Event "Titled Tuesday Blitz August 3 2021"]
[White "Yoo, Christopher Woojin"]
[Black "Leve, Nitai"]
[WhiteFideId "30909694"]
[BlackFideId "2006898"]
[WhiteElo "2105"]
[BlackElo "2144"]
[Result "1-0"]
[Round "01"]
[TimeControl "180+1"]
[Date "2021.08.03"]
[WhiteClock "0:00:05"]
[BlackClock "0:00:01"]

1. d4 {[%clk 0:02:50]}  d5 {[%clk 0:02:59]} 2. Nf3 {[%clk 0:02:48]}  Nf6 {[%clk 0:02:59]} 3. c4 {[%clk 0:02:47]}  c6 {[%clk 0:02:58]} 4. Nc3 {[%clk 0:02:46]}  dxc4 {[%clk 0:02:58]} 5. a4 {[%clk 0:02:46]}  Bf5 {[%clk 0:02:58]} 6. e3 {[%clk 0:02:46]}  e6 {[%clk 0:02:58]} 7. Bxc4 {[%clk 0:02:46]}  Nbd7 {[%clk 0:02:57]} 8. O-O {[%clk 0:02:46]}  Bb4 {[%clk 0:02:57]} 9. Qe2 {[%clk 0:02:38]}  Bg6 {[%clk 0:02:57]} 10. e4 {[%clk 0:01:46]}  Bxc3 {[%clk 0:02:57]} 11. bxc3 {[%clk 0:01:46]}  Nxe4 {[%clk 0:02:57]} 12. Ba3 {[%clk 0:01:40]}  Qc7 {[%clk 0:02:54]} 13. a5 {[%clk 0:01:24]}  O-O-O {[%clk 0:02:52]} 14. a6 {[%clk 0:01:22]}  b6 {[%clk 0:02:51]} 15. Rfc1 {[%clk 0:01:14]}  e5 {[%clk 0:01:58]} 16. d5 {[%clk 0:01:13]}  cxd5 {[%clk 0:01:50]} 17. Bxd5 {[%clk 0:01:12]}  Ndf6 {[%clk 0:01:50]} 18. c4 {[%clk 0:01:09]}  Nc5 {[%clk 0:01:40]} 19. Bxc5 {[%clk 0:00:55]}  Qxc5 {[%clk 0:01:26]} 20. Bb7+ {[%clk 0:00:54]}  Kb8 {[%clk 0:01:25]} 21. Nxe5 {[%clk 0:00:52]}  Rhe8 {[%clk 0:01:14]} 22. Re1 {[%clk 0:00:51]}  Be4 {[%clk 0:00:40]} 23. Bxe4 {[%clk 0:00:29]}  Rxe5 {[%clk 0:00:35]} 24. Qf3 {[%clk 0:00:18]}  Rde8 {[%clk 0:00:20]} 25. Qf4 {[%clk 0:00:18]}  Qc7 {[%clk 0:00:15]} 26. f3 {[%clk 0:00:09]}  Nxe4 {[%clk 0:00:12]} 27. fxe4 {[%clk 0:00:10]}  Rc5 {[%clk 0:00:12]} 28. Qf3 {[%clk 0:00:06]}  Ree5 {[%clk 0:00:09]} 29. Rad1 {[%clk 0:00:06]}  Rxc4 {[%clk 0:00:08]} 30. Rd5 {[%clk 0:00:05]}  Rc5 {[%clk 0:00:06]} 31. Red1 {[%clk 0:00:04]}  Rcxd5 {[%clk 0:00:05]} 32. exd5 {[%clk 0:00:05]}  f6 {[%clk 0:00:01]} 33. d6 {[%clk 0:00:05]} 1-0


[Site "https://www.chess.com"]

[Event "Titled Tuesday Blitz August 3 2021"]
[White "ketster"]
[Black "Gupta, Abhijeet"]
[BlackFideId "5010608"]
[WhiteElo "2417"]
[BlackElo "2549"]
[Result "0-1"]
[Round "01"]
[TimeControl "180+1"]
[Date "2021.08.03"]
[WhiteClock "0:00:02"]
[BlackClock "0:00:22"]

1. d4 {[%clk 0:02:56]}  Nf6 {[%clk 0:02:59]} 2. c4 {[%clk 0:02:53]}  g6 {[%clk 0:02:59]} 3. Nc3 {[%clk 0:02:50]}  d5 {[%clk 0:02:59]} 4. Nf3 {[%clk 0:02:50]}  Bg7 {[%clk 0:02:59]} 5. h4 {[%clk 0:02:50]}  c6 {[%clk 0:02:55]} 6. Bg5 {[%clk 0:02:48]}  O-O {[%clk 0:02:44]} 7. Bxf6 {[%clk 0:02:48]}  Bxf6 {[%clk 0:02:43]} 8. h5 {[%clk 0:02:48]}  g5 {[%clk 0:02:40]} 9. e3 {[%clk 0:02:47]}  h6 {[%clk 0:02:39]} 10. Ne5 {[%clk 0:02:36]}  dxc4 {[%clk 0:02:25]} 11. Bxc4 {[%clk 0:02:35]}  Bxe5 {[%clk 0:02:11]} 12. dxe5 {[%clk 0:02:34]}  Qxd1+ {[%clk 0:02:11]} 13. Rxd1 {[%clk 0:02:33]}  b5 {[%clk 0:02:11]} 14. Bb3 {[%clk 0:02:32]}  Na6 {[%clk 0:02:11]} 15. e6 {[%clk 0:02:08]}  Bxe6 {[%clk 0:01:58]} 16. Bxe6 {[%clk 0:02:07]}  fxe6 {[%clk 0:01:59]} 17. Ne4 {[%clk 0:02:02]}  Rfd8 {[%clk 0:01:55]} 18. Ke2 {[%clk 0:02:01]}  c5 {[%clk 0:01:53]} 19. a3 {[%clk 0:01:43]}  Kf7 {[%clk 0:01:53]} 20. g4 {[%clk 0:01:32]}  c4 {[%clk 0:01:52]} 21. f4 {[%clk 0:01:28]}  gxf4 {[%clk 0:01:39]} 22. exf4 {[%clk 0:01:28]}  Nc7 {[%clk 0:01:39]} 23. g5 {[%clk 0:01:24]}  Rxd1 {[%clk 0:01:38]} 24. g6+ {[%clk 0:01:16]}  Kg7 {[%clk 0:01:37]} 25. Rxd1 {[%clk 0:01:16]}  Nd5 {[%clk 0:01:38]} 26. f5 {[%clk 0:01:12]}  Nf4+ {[%clk 0:01:24]} 27. Kf3 {[%clk 0:01:10]}  Nxh5 {[%clk 0:01:22]} 28. fxe6 {[%clk 0:00:58]}  Rf8+ {[%clk 0:01:19]} 29. Ke3 {[%clk 0:00:56]}  Nf6 {[%clk 0:01:17]} 30. a4 {[%clk 0:00:23]}  a6 {[%clk 0:01:12]} 31. axb5 {[%clk 0:00:23]}  axb5 {[%clk 0:01:13]} 32. Ra1 {[%clk 0:00:23]}  Kxg6 {[%clk 0:01:00]} 33. Ra5 {[%clk 0:00:19]}  Rb8 {[%clk 0:00:57]} 34. Nc5 {[%clk 0:00:14]}  h5 {[%clk 0:00:53]} 35. Nd7 {[%clk 0:00:14]}  Rb7 {[%clk 0:00:50]} 36. Nc5 {[%clk 0:00:11]}  Rb6 {[%clk 0:00:47]} 37. Kf3 {[%clk 0:00:09]}  h4 {[%clk 0:00:43]} 38. Ra7 {[%clk 0:00:09]}  Rc6 {[%clk 0:00:38]} 39. Nd7 {[%clk 0:00:09]}  Kf5 {[%clk 0:00:30]} 40. Nf8 {[%clk 0:00:05]}  Nd5 {[%clk 0:00:29]} 41. Rd7 {[%clk 0:00:04]}  Rd6 {[%clk 0:00:25]} 42. Rb7 {[%clk 0:00:01]}  b4 {[%clk 0:00:21]} 43. Rb5 {[%clk 0:00:02]}  h3 {[%clk 0:00:20]} 44. Rc5 {[%clk 0:00:02]}  c3 {[%clk 0:00:20]} 45. bxc3 {[%clk 0:00:02]}  bxc3 {[%clk 0:00:21]} 46. Kg3 {[%clk 0:00:02]}  Ke4 {[%clk 0:00:20]} 47. Kxh3 {[%clk 0:00:02]}  Kd4 {[%clk 0:00:20]} 48. Rc8 {[%clk 0:00:02]}  Nb4 {[%clk 0:00:20]} 49. Ng6 {[%clk 0:00:01]}  Rxe6 {[%clk 0:00:20]} 50. Nf4 {[%clk 0:00:01]}  Rc6 {[%clk 0:00:20]} 51. Ne2+ {[%clk 0:00:01]}  Kd3 {[%clk 0:00:19]} 52. Rxc6 {[%clk 0:00:01]}  Nxc6 {[%clk 0:00:20]} 53. Nxc3 {[%clk 0:00:01]}  Kxc3 {[%clk 0:00:20]} 54. Kg4 {[%clk 0:00:02]}  Kd4 {[%clk 0:00:21]} 55. Kf5 {[%clk 0:00:02]}  e5 {[%clk 0:00:22]} 0-1


[Site "https://www.chess.com"]

[Event "Titled Tuesday Blitz August 3 2021"]
[White "Aitbayev, Aslan"]
[Black "Ambartsumova, Karina"]
[WhiteFideId "13704613"]
[BlackFideId "4166299"]
[WhiteElo "2417"]
[BlackElo "2262"]
[Result "0-1"]
[Round "02"]
[TimeControl "180+1"]
[Date "2021.08.03"]
[WhiteClock "0:00:08"]
[BlackClock "0:00:08"]

1. e4 {[%clk 0:03:00]}  c5 {[%clk 0:02:59]} 2. Nf3 {[%clk 0:03:00]}  e6 {[%clk 0:02:59]} 3. d4 {[%clk 0:03:00]}  cxd4 {[%clk 0:03:00]} 4. Nxd4 {[%clk 0:03:01]}  a6 {[%clk 0:03:00]} 5. Bd3 {[%clk 0:03:00]}  Bc5 {[%clk 0:02:55]} 6. Nb3 {[%clk 0:03:00]}  Ba7 {[%clk 0:02:55]} 7. O-O {[%clk 0:02:54]}  d6 {[%clk 0:02:52]} 8. Qg4 {[%clk 0:02:46]}  Nf6 {[%clk 0:02:52]} 9. Qxg7 {[%clk 0:02:44]}  Rg8 {[%clk 0:02:49]} 10. Qh6 {[%clk 0:02:44]}  Nc6 {[%clk 0:02:36]} 11. Nc3 {[%clk 0:02:30]}  Ne5 {[%clk 0:02:34]} 12. Kh1 {[%clk 0:02:20]}  Rg6 {[%clk 0:02:10]} 13. Qh4 {[%clk 0:02:17]}  Rg4 {[%clk 0:01:18]} 14. Qh3 {[%clk 0:02:14]}  Nxd3 {[%clk 0:01:15]} 15. cxd3 {[%clk 0:02:15]}  e5 {[%clk 0:01:16]} 16. Qf3 {[%clk 0:02:05]}  Rg6 {[%clk 0:01:08]} 17. h3 {[%clk 0:02:00]}  h5 {[%clk 0:00:58]} 18. Be3 {[%clk 0:01:55]}  Bg4 {[%clk 0:00:40]} 19. hxg4 {[%clk 0:01:49]}  hxg4 {[%clk 0:00:41]} 20. Qf5 {[%clk 0:01:45]}  Ke7 {[%clk 0:00:39]} 21. Bg5 {[%clk 0:01:31]}  Qh8+ {[%clk 0:00:37]} 22. Kg1 {[%clk 0:01:31]}  g3 {[%clk 0:00:32]} 23. Qh3 {[%clk 0:00:30]}  Rxg5 {[%clk 0:00:24]} 24. Qxh8 {[%clk 0:00:23]}  Rxh8 {[%clk 0:00:24]} 25. d4 {[%clk 0:00:20]}  exd4 {[%clk 0:00:22]} 26. Nd5+ {[%clk 0:00:16]}  Nxd5 {[%clk 0:00:22]} 27. exd5 {[%clk 0:00:17]}  Rxd5 {[%clk 0:00:23]} 28. Rfe1+ {[%clk 0:00:16]}  Re5 {[%clk 0:00:23]} 29. Rxe5+ {[%clk 0:00:14]}  dxe5 {[%clk 0:00:24]} 30. Rc1 {[%clk 0:00:13]}  Kd6 {[%clk 0:00:24]} 31. fxg3 {[%clk 0:00:13]}  e4 {[%clk 0:00:21]} 32. Kf2 {[%clk 0:00:12]}  Ke5 {[%clk 0:00:18]} 33. Rc7 {[%clk 0:00:11]}  d3+ {[%clk 0:00:07]} 34. Ke1 {[%clk 0:00:10]}  Be3 {[%clk 0:00:06]} 35. Nd2 {[%clk 0:00:09]}  Rh1+ {[%clk 0:00:06]} 36. Nf1 {[%clk 0:00:10]}  d2+ {[%clk 0:00:07]} 37. Ke2 {[%clk 0:00:10]}  Rxf1 {[%clk 0:00:08]} 38. Rd7 {[%clk 0:00:08]}  Re1# {[%clk 0:00:08]} 0-1


[Site "https://www.chess.com"]

[Event "Titled Tuesday Blitz August 3 2021"]
[White "Anuj Shrivatri"]
[Black "Stangl, Anita, Dr."]
[WhiteFideId "35070924"]
[BlackFideId "4608801"]
[WhiteElo "2038"]
[BlackElo "1982"]
[Result "1-0"]
[Round "02"]
[TimeControl "180+1"]
[Date "2021.08.03"]
[WhiteClock "0:01:39"]
[BlackClock "0:02:00"]

1. c4 {[%clk 0:03:00]}  e6 {[%clk 0:03:00]} 2. g3 {[%clk 0:02:58]}  d5 {[%clk 0:03:00]} 3. Bg2 {[%clk 0:02:59]}  c6 {[%clk 0:03:00]} 4. Qc2 {[%clk 0:02:55]}  dxc4 {[%clk 0:03:00]} 5. Qxc4 {[%clk 0:02:55]}  Nf6 {[%clk 0:03:00]} 6. Qc2 {[%clk 0:02:53]}  Be7 {[%clk 0:03:00]} 7. Nf3 {[%clk 0:02:53]}  O-O {[%clk 0:03:00]} 8. d4 {[%clk 0:02:52]}  Nbd7 {[%clk 0:02:59]} 9. O-O {[%clk 0:02:52]}  c5 {[%clk 0:02:59]} 10. Rd1 {[%clk 0:02:50]}  cxd4 {[%clk 0:02:58]} 11. Nxd4 {[%clk 0:02:51]}  Qb6 {[%clk 0:02:57]} 12. Be3 {[%clk 0:02:50]}  Qa6 {[%clk 0:02:56]} 13. Nc3 {[%clk 0:02:49]}  Nc5 {[%clk 0:02:51]} 14. b4 {[%clk 0:02:40]}  Ncd7 {[%clk 0:02:50]} 15. b5 {[%clk 0:02:34]}  Qa5 {[%clk 0:02:50]} 16. Nb3 {[%clk 0:02:33]}  Qc7 {[%clk 0:02:50]} 17. Rac1 {[%clk 0:02:31]}  Ba3 {[%clk 0:02:49]} 18. Nb1 {[%clk 0:02:25]}  Qxc2 {[%clk 0:02:45]} 19. Rxc2 {[%clk 0:02:26]}  Ne5 {[%clk 0:02:39]} 20. Nxa3 {[%clk 0:02:25]}  Bd7 {[%clk 0:02:38]} 21. Bf4 {[%clk 0:02:21]}  Ng6 {[%clk 0:02:38]} 22. Bxb7 {[%clk 0:02:16]}  Rab8 {[%clk 0:02:36]} 23. Bxb8 {[%clk 0:02:15]}  Rxb8 {[%clk 0:02:35]} 24. Rc7 {[%clk 0:02:14]}  Be8 {[%clk 0:02:33]} 25. Nc4 {[%clk 0:02:12]}  Bxb5 {[%clk 0:02:32]} 26. Nd6 {[%clk 0:02:02]}  Bxe2 {[%clk 0:02:30]} 27. Rdc1 {[%clk 0:02:02]}  h6 {[%clk 0:02:27]} 28. Rc8+ {[%clk 0:02:02]}  Rxc8 {[%clk 0:02:26]} 29. Rxc8+ {[%clk 0:02:02]}  Kh7 {[%clk 0:02:26]} 30. Nxf7 {[%clk 0:02:02]}  Nd5 {[%clk 0:02:25]} 31. Bxd5 {[%clk 0:02:00]}  exd5 {[%clk 0:02:26]} 32. Nd4 {[%clk 0:01:59]}  Bc4 {[%clk 0:02:23]} 33. f4 {[%clk 0:01:57]}  Ne7 {[%clk 0:02:16]} 34. Rc7 {[%clk 0:01:56]}  Ng8 {[%clk 0:02:13]} 35. f5 {[%clk 0:01:54]}  Nf6 {[%clk 0:02:10]} 36. Rc8 {[%clk 0:01:54]}  g6 {[%clk 0:02:09]} 37. fxg6+ {[%clk 0:01:48]}  Kxg6 {[%clk 0:02:09]} 38. Ne5+ {[%clk 0:01:49]}  Kg7 {[%clk 0:02:07]} 39. Nf5+ {[%clk 0:01:47]}  Kh7 {[%clk 0:02:03]} 40. Rc7+ {[%clk 0:01:47]}  Kg8 {[%clk 0:02:02]} 41. Ng6 {[%clk 0:01:40]}  Ne4 {[%clk 0:02:00]} 42. Nxh6# {[%clk 0:01:39]} 1-0


[Site "https://www.chess.com"]

[Event "Titled Tuesday Blitz August 3 2021"]
[White "Arabidze, Meri"]
[Black "Starosta, Martyna"]
[WhiteFideId "13604040"]
[BlackFideId "21818754"]
[WhiteElo "2432"]
[BlackElo "1679"]
[Result "1-0"]
[Round "02"]
[TimeControl "180+1"]
[Date "2021.08.03"]
[WhiteClock "0:00:25"]
[BlackClock "0:00:31"]

1. Nf3 {[%clk 0:03:00]}  Nf6 {[%clk 0:02:59]} 2. d4 {[%clk 0:03:00]}  g6 {[%clk 0:03:00]} 3. c4 {[%clk 0:03:01]}  Bg7 {[%clk 0:03:00]} 4. Nc3 {[%clk 0:03:01]}  O-O {[%clk 0:03:01]} 5. g3 {[%clk 0:03:02]}  d6 {[%clk 0:02:59]} 6. Bg2 {[%clk 0:03:03]}  Nc6 {[%clk 0:02:57]} 7. O-O {[%clk 0:03:02]}  Bg4 {[%clk 0:02:56]} 8. d5 {[%clk 0:02:59]}  Bxf3 {[%clk 0:02:53]} 9. exf3 {[%clk 0:03:00]}  Ne5 {[%clk 0:02:50]} 10. Qe2 {[%clk 0:03:01]}  c5 {[%clk 0:02:47]} 11. f4 {[%clk 0:03:01]}  Ned7 {[%clk 0:02:47]} 12. Re1 {[%clk 0:03:01]}  Re8 {[%clk 0:02:45]} 13. Bd2 {[%clk 0:02:56]}  Rb8 {[%clk 0:02:38]} 14. b3 {[%clk 0:02:56]}  a6 {[%clk 0:02:39]} 15. a4 {[%clk 0:02:56]}  e5 {[%clk 0:02:21]} 16. dxe6 {[%clk 0:02:53]}  fxe6 {[%clk 0:02:21]} 17. Qd3 {[%clk 0:02:50]}  Nb6 {[%clk 0:02:19]} 18. Rad1 {[%clk 0:02:49]}  d5 {[%clk 0:02:16]} 19. cxd5 {[%clk 0:02:49]}  exd5 {[%clk 0:02:17]} 20. Rxe8+ {[%clk 0:02:47]}  Qxe8 {[%clk 0:02:17]} 21. Nxd5 {[%clk 0:02:43]}  Rd8 {[%clk 0:02:10]} 22. Nxf6+ {[%clk 0:02:06]}  Bxf6 {[%clk 0:02:11]} 23. Qf1 {[%clk 0:02:05]}  Kg7 {[%clk 0:02:00]} 24. Be3 {[%clk 0:02:03]}  Bd4 {[%clk 0:01:52]} 25. Bxd4+ {[%clk 0:01:59]}  cxd4 {[%clk 0:01:53]} 26. Bxb7 {[%clk 0:01:56]}  Qf7 {[%clk 0:01:51]} 27. Bxa6 {[%clk 0:01:51]}  Qxb3 {[%clk 0:01:51]} 28. a5 {[%clk 0:01:51]}  Nd5 {[%clk 0:01:43]} 29. Bc4 {[%clk 0:01:49]}  Qc3 {[%clk 0:01:37]} 30. Bxd5 {[%clk 0:01:26]}  Rxd5 {[%clk 0:01:38]} 31. a6 {[%clk 0:01:27]}  Qa5 {[%clk 0:01:35]} 32. Qc4 {[%clk 0:01:05]}  Rd6 {[%clk 0:01:21]} 33. Kg2 {[%clk 0:01:05]}  Qb6 {[%clk 0:01:15]} 34. Rd3 {[%clk 0:01:01]}  Rd7 {[%clk 0:01:04]} 35. h4 {[%clk 0:00:59]}  h5 {[%clk 0:01:02]} 36. Rb3 {[%clk 0:00:59]}  Qa7 {[%clk 0:00:56]} 37. Qe6 {[%clk 0:00:43]}  d3 {[%clk 0:00:54]} 38. Qxd7+ {[%clk 0:00:31]}  Qxd7 {[%clk 0:00:51]} 39. Rb7 {[%clk 0:00:32]}  Qxb7+ {[%clk 0:00:51]} 40. axb7 {[%clk 0:00:33]}  d2 {[%clk 0:00:51]} 41. b8=Q {[%clk 0:00:33]}  d1=Q {[%clk 0:00:52]} 42. Qe5+ {[%clk 0:00:34]}  Kh7 {[%clk 0:00:51]} 43. Qe7+ {[%clk 0:00:33]}  Kh6 {[%clk 0:00:47]} 44. Qg5+ {[%clk 0:00:33]}  Kh7 {[%clk 0:00:47]} 45. Qe5 {[%clk 0:00:34]}  Qa4 {[%clk 0:00:44]} 46. f5 {[%clk 0:00:33]}  Qa8+ {[%clk 0:00:42]} 47. Kh2 {[%clk 0:00:32]}  Qa2 {[%clk 0:00:40]} 48. fxg6+ {[%clk 0:00:32]}  Kxg6 {[%clk 0:00:41]} 49. Qg5+ {[%clk 0:00:31]}  Kf7 {[%clk 0:00:38]} 50. Qxh5+ {[%clk 0:00:32]}  Kg7 {[%clk 0:00:38]} 51. Qg5+ {[%clk 0:00:30]}  Kh8 {[%clk 0:00:37]} 52. Qf6+ {[%clk 0:00:29]}  Kh7 {[%clk 0:00:37]} 53. h5 {[%clk 0:00:27]}  Kg8 {[%clk 0:00:34]} 54. h6 {[%clk 0:00:25]}  Qa7 {[%clk 0:00:27]} 55. Qg7+ {[%clk 0:00:23]}  Qxg7 {[%clk 0:00:27]} 56. hxg7 {[%clk 0:00:24]}  Kxg7 {[%clk 0:00:28]} 57. f4 {[%clk 0:00:24]}  Kf6 {[%clk 0:00:28]} 58. g4 {[%clk 0:00:25]}  Kg6 {[%clk 0:00:28]} 59. Kg3 {[%clk 0:00:26]}  Kf6 {[%clk 0:00:28]} 60. Kh4 {[%clk 0:00:27]}  Kg6 {[%clk 0:00:29]} 61. f5+ {[%clk 0:00:27]}  Kf6 {[%clk 0:00:29]} 62. Kh5 {[%clk 0:00:25]}  Kg7 {[%clk 0:00:30]} 63. g5 {[%clk 0:00:25]}  Kh8 {[%clk 0:00:30]} 64. Kg6 {[%clk 0:00:25]}  Kg8 {[%clk 0:00:30]} 65. Kf6 {[%clk 0:00:25]}  Kh8 {[%clk 0:00:30]} 66. g6 {[%clk 0:00:25]}  Kg8 {[%clk 0:00:31]} 67. g7 {[%clk 0:00:25]}  Kh7 {[%clk 0:00:31]} 68. Kf7 {[%clk 0:00:25]} 1-0


[Site "https://www.chess.com"]